[Event "87th Tata Steel Challengers 2025"]
[Site "Wijk aan Zee"]
[Date "2025.02.01"]
[Round "12.5"]
[White "Deshmukh, Divya"]
[Black "Bok, Benjamin"]
[Result "0-1"]
[Annotator "TA"]
[ECO "D55"]
[WhiteElo "2490"]
[BlackElo "2583"]
[PlyCount "258"]
[EventDate "2025.01.13"]
[EventType "tourn"]
[EventCountry "NED"]
[SourceTitle "playchess.com"]
[Source "ChessBase"]
[SourceQuality "1"]
[TimeControl "40/6000+30:20/3000+30:900+30"]

{[%evp 20,258,12,-2,29,23,36,0,0,0,0,-18,-21,-21,-30,-24,-14,-27,-28,-17,-19,-25,-18,-20,-20,-22,-20,-21,-13,-19,-12,-16,-8,-8,-8,-18,-22,-26,-18,-33,-16,-21,-21,-17,-16,-15,-14,-17,-15,-29,-32,-64,-56,-49,-54,-52,-35,-37,-29,-29,-29,-51,-51,-184,-63,-107,-47,-52,-41,-47,-45,-30,0,0,0,0,0,-15,0,0,0,0,0,-1,0,0,0,-15,-8,-82,-79,-119,-119,-119,-119,-119,-119,-119,-119,-113,-20,-55,0,-82,-82,-82,-82,-82,-82,-82,-73,-73,-73,-73,-73,-73,-66,-66,-66,-66,-66,-66,-66,-66,-66,-66,-66,-66,-66,-66,-66,-66,-66,-66,-66,-66,-66,-66,-66,-66,-66,-66,-66,-66,-66,-66,-66,-66,-66,-67,-66,-66,-66,-66,-66,-66,-66,-66,-66,-66,-66,-76,-66,-66,-66,-85,-85,-85,-77,-77,-66,-66,-59,-59,-59,-59,-59,-66,-59,-66,-66,-66,-66,-66,-66,-66,-66,-62,-59,-66,-59,-59,-59,-66,-59,-59,-59,-58,-58,-66,-66,-74,-73,-75,-66,-66,-67,-83,-25,-47,-25,-39,-25,-43,-25,-25,-25,-25,-32,-32,-32,-39,-39,-54,-14,-28,-21,-35,-8,-43,-50,-57,-8,-56,-8,-8,-8,-29989,-29989,-29989,-29990]} 1. d4 {[%emt 0:00:07]} Nf6 {[%emt 0:00:13]} 2. c4 {[%emt 0:00:08]} e6 {[%emt 0:00:06]} 3. Nc3 {[%emt 0:00:10]} d5 {[%emt 0:00:06]} 4. Bg5 {[%emt 0:00:11]} Be7 {[%emt 0:00:20]} 5. Nf3 {[%emt 0:01:06]} O-O {[%emt 0:06:04]} 6. e3 {[%emt 0:00:44]} h6 {[%emt 0:00:08]} 7. Bxf6 {[%emt 0:00:14]} Bxf6 {[%emt 0:00:08]} 8. Rc1 {[%emt 0:00:05]} c6 {[%emt 0:07:23]} 9. Bd3 {[%emt 0:00:38]} Nd7 {[%emt 0:03:10]} 10. O-O {[%emt 0:00:32]} a6 {[%emt 0:21:26]} 11. a3 {[%emt 0:04:56]} dxc4 $5 {[%emt 0:10:24][%mdl 4] An interesting side line. D55: Queen's Gambit Declined: 4 Bg5 Be7: Lines without ...h6 and 6...h6 7 Bxf6.} 12. Bxc4 {[%emt 0:00:27]} b5 {[%emt 0:03:01]} 13. Ba2 {[%emt 0:05:08]} c5 {[%emt 0:01:12] The position is equal.} 14. dxc5 {[%emt 0:33:07]} Nxc5 {[%emt 0:00:17]} 15. Nd4 {[%emt 0:05:49]} Bb7 $146 {[%emt 0:22:09]} (15... Qb6 16. b4 Nd7 17. Ne4 Bb7 18. Nc5 Nxc5 19. bxc5 Qa5 20. c6 Bc8 21. Qd3 Qc7 {0-1 Toshkov,T (2435)-Zlatilov,I (2385) BUL-ch Elenite 1987 (8)}) 16. Ncxb5 {[%emt 0:08:29]} axb5 {[%emt 0:00:24] Black sacrificed a pawn} 17. Rxc5 {[%emt 0:00:03]} b4 {[%emt 0:00:42]} 18. Bb1 {[%emt 0:04:33]} Bxd4 {[%emt 0:03:16]} (18... bxa3 19. Qc2 Re8 (19... g6 $2 20. Nxe6 Qb6 21. Nxf8 $18) 20. Qh7+ Kf8 21. bxa3 $14) 19. exd4 {[%emt 0:00:16]} bxa3 {[%emt 0:00:29]} 20. bxa3 {[%emt 0:00:06]} Rxa3 {[%emt 0:07:47]} 21. Qc2 {[%emt 0:01:10]} g6 {[%emt 0:01:02] Successful Defense Black Active counter play!} (21... Qxd4 22. Qh7#) 22. Qc1 {[%emt 0:10:37]} (22. Qd2 Ra1 23. h3 h5 24. Qc3) 22... Ra1 {[%emt 0:00:19]} 23. Qxh6 {[%emt 0:06:07] Counterplay Black} Qxd4 {[%emt 0:00:14]} 24. Rh5 {[%emt 0:00:02][%csl Gh5][%cal Rh6h7,Bc5h5,Bh5h4,Bh4f4][%mdl 32]} Rd8 {[%emt 0:08:52][%cal Ob7a6] Chess con chili.} (24... gxh5 25. Qh7#) 25. Rh4 {[%emt 0:07:42]} Qf6 {[%emt 0:01:40]} 26. Qh7+ {[%emt 0:05:22]} Kf8 {[%emt 0:00:01]} 27. Rf4 {[%emt 0:04:51]} Qg7 {[%emt 0:03:28]} (27... Qxf4 {is more complex.} 28. Qh8+ Ke7 29. Qxa1 Qg4) 28. Qxg7+ {[%emt 0:06:07]} Kxg7 {[%emt 0:00:02]} 29. Bd3 {[%emt 0:02:19]} Ra2 {[%emt 0:01:06]} 30. Bb1 {[%emt 0:01:11]} Rb2 {[%emt 0:00:59]} 31. Ra4 {[%emt 0:00:05] Repels Ba6} Rdd2 {[%emt 0:04:22]} 32. Be4 $1 {[%emt 0:00:06] Repels Bc6} Bc8 {[%emt 0:00:09]} 33. Raa1 {[%emt 0:03:07]} f5 {[%emt 0:00:07]} 34. Bf3 {[%emt 0:00:32]} e5 {[%emt 0:00:12]} 35. Rad1 {[%emt 0:00:55]} e4 {[%emt 0:04:36]} 36. Rxd2 {[%emt 0:00:01]} Rxd2 $15 {[%emt 0:00:05][%mdl 4096] Endgame KRB-KRB} 37. Bd1 {[%emt 0:00:06]} Bb7 {[%emt 0:00:16][%cal Oe4e3]} 38. Re1 {[%emt 0:00:21]} Ba6 {[%emt 0:02:36]} 39. h4 {[%emt 0:00:46]} Bb5 {[%emt 0:00:33]} 40. g3 {[%emt 0:01:23]} Rb2 {[%emt 0:00:28]} 41. Kg2 {[%emt 0:24:09]} (41. f4 $15) 41... Kf6 {[%emt 0:08:19]} (41... Rb1 $1 $19 {[%cal Ob5a4]} 42. f3 e3 (42... Ba4 43. Bxa4 Rxe1 44. fxe4 $17) 43. Rxe3 Rxd1) 42. h5 {[%emt 0:06:57]} Bc6 {[%emt 0:07:22]} (42... Rd2 $17 {[%cal Oe4e3] Hoping for ...e3!.} 43. Kg1 g5) 43. Re3 {[%emt 0:15:17]} g5 {[%emt 0:05:25]} 44. Rc3 {[%emt 0:00:45]} Bd5 {[%emt 0:08:06]} 45. Kf1 {[%emt 0:02:17]} f4 {[%emt 0:16:24]} 46. gxf4 {[%emt 0:00:01]} gxf4 {[%emt 0:00:05]} 47. Ke1 {[%emt 0:00:55] Dodges e3} f3 {[%emt 0:05:43]} 48. Rc5 {[%emt 0:03:03]} Ke5 {[%emt 0:02:28]} 49. h6 {[%emt 0:00:13][%cal Bh5h6,Bh6h7][%mdl 32] And now h7 would win.} Rb7 {[%emt 0:00:04]} 50. Ra5 {[%emt 0:01:24]} Kd4 {[%emt 0:00:44]} 51. Bc2 {[%emt 0:00:31]} Rb6 {[%emt 0:00:54]} 52. h7 {[%emt 0:00:36]} Rh6 {[%emt 0:00:04]} 53. Ra7 {[%emt 0:00:37]} Rh2 {[%emt 0:00:54]} (53... Kc3 $5 54. Rc7+ $8 Kd4 $11 (54... Bc4 55. Rxc4+ Kxc4 56. Bxe4 $11)) 54. Rc7 {[%emt 0:00:28] [#]} (54. Kd1 $11 {keeps the balance.}) 54... Be6 $1 $17 {[%emt 0:00:31]} 55. Ba4 {[%emt 0:00:34]} Bf5 {[%emt 0:00:29]} 56. Bb5 {[%emt 0:00:11]} Bxh7 {[%emt 0:00:18]} 57. Rd7+ {[%emt 0:00:29]} Kc5 {[%emt 0:00:33]} 58. Ba6 {[%emt 0:00:12]} Bf5 {[%emt 0:00:10]} 59. Rd8 {[%emt 0:00:58]} Kb6 {[%emt 0:01:02]} (59... Bg6 $17) 60. Rd6+ {[%emt 0:00:03]} Kc5 {[%emt 0:00:25][%cal Oe4e3] ( -> ...e3!)} (60... Kc7 $5 61. Rf6 $8 Bd7 $11) 61. Rd8 {[%emt 0:15:01] [#]} e3 $1 {[%emt 0:15:36]} 62. fxe3 {[%emt 0:00:33] [#]} f2+ $1 {[%emt 0:00:05]} 63. Kd1 {[%emt 0:00:04]} Bg4+ {[%emt 0:00:35]} 64. Kc1 {[%emt 0:00:02]} Rh1+ {[%emt 0:00:46]} (64... Rh6 {simplifies} 65. Rf8 Rxa6 66. Rxf2 Kc4) 65. Kb2 {[%emt 0:01:16]} f1=Q {[%emt 0:00:18] Against Rf8} (65... f1=R $2 66. Bxf1 Rxf1 67. Rd4 $19) 66. Bxf1 {[%emt 0:00:02]} Rxf1 {[%emt 0:00:05] KRB-KR} 67. Rd4 {[%emt 0:00:22]} Be6 {[%emt 0:00:38]} 68. Kc3 {[%emt 0:00:09]} Ra1 {[%emt 0:00:12]} 69. Kd3 $1 {[%emt 0:00:32]} Bd5 {[%emt 0:00:25]} 70. Ke2 {[%emt 0:00:33]} Ra2+ {[%emt 0:00:39]} 71. Rd2 {[%emt 0:00:02]} Bc4+ {[%emt 0:00:26]} 72. Ke1 {[%emt 0:00:01]} Ra3 {[%emt 0:01:08]} 73. Kf2 {[%emt 0:00:02]} Bd3 {[%emt 0:00:18]} 74. Kf3 {[%emt 0:00:02]} Kc4 {[%emt 0:00:26]} 75. Rh2 {[%emt 0:00:19]} Ra8 {[%emt 0:00:40]} 76. Rh4+ {[%emt 0:02:52]} Kc3 {[%emt 0:00:01]} 77. Rd4 {[%emt 0:00:27]} Kd2 {[%emt 0:00:56]} 78. Kf2 {[%emt 0:00:55]} Re8 {[%emt 0:00:49]} 79. Ra4 {[%emt 0:00:21]} Re7 {[%emt 0:00:21]} (79... Rxe3 80. Ra2+ Kc3 81. Ra3+ Kd4 82. Ra4+ Kc5 83. Rc4+ Kd6 84. Kxe3 $11) 80. Ra2+ {[%emt 0:00:06]} Bc2 {[%emt 0:00:15]} 81. Rb2 {[%emt 0:00:24]} Rf7+ {[%emt 0:00:25]} ({Much weaker is} 81... Rxe3 82. Rxc2+ Kxc2 83. Kxe3 $11) 82. Kg3 {[%emt 0:00:08]} Kd3 {[%emt 0:00:30]} 83. Ra2 {[%emt 0:01:45]} Bd1 {[%emt 0:00:15]} 84. Ra8 {[%emt 0:01:25]} Bf3 {[%emt 0:00:56]} 85. Ra3+ {[%emt 0:00:03]} Ke2 {[%emt 0:00:19]} 86. Rb3 {[%emt 0:01:12]} Be4 {[%emt 0:00:15]} 87. Kg4 {[%emt 0:00:02]} Bd3 {[%emt 0:00:13]} 88. e4 {[%emt 0:00:57]} Ke3 {[%emt 0:01:30]} (88... Bxe4 $2 89. Ra3 $19) 89. Ra3 {[%emt 0:00:32]} Kxe4 {[%emt 0:00:25]} 90. Ra4+ {[%emt 0:00:01]} Ke3 {[%emt 0:00:06]} 91. Kg5 {[%emt 0:00:17]} Rf5+ {[%emt 0:00:42]} 92. Kg4 {[%emt 0:00:04]} Rb5 {[%emt 0:00:17]} 93. Ra3 {[%emt 0:00:06]} Rb6 {[%emt 0:00:13]} 94. Ra5 {[%emt 0:01:21]} Rb1 {[%emt 0:00:28]} 95. Kg5 {[%emt 0:00:19]} Rg1+ {[%emt 0:00:51]} 96. Kf6 {[%emt 0:00:03]} Rg6+ {[%emt 0:00:04]} 97. Ke7 {[%emt 0:00:10]} Kd4 {[%emt 0:00:51]} 98. Ra4+ {[%emt 0:00:58]} Bc4 {[%emt 0:00:18]} 99. Ra1 {[%emt 0:00:13]} Bd5 {[%emt 0:00:30]} 100. Re1 {[%emt 0:01:28]} Be4 {[%emt 0:00:07]} 101. Kd7 {[%emt 0:00:13]} Ke5 {[%emt 0:00:56]} 102. Kc7 {[%emt 0:00:07]} Rc6+ {[%emt 0:00:25]} 103. Kd7 {[%emt 0:00:04][%cal Oe1e4]} Rb6 {[%emt 0:00:08]} 104. Rc1 {[%emt 0:01:05]} Rh6 {[%emt 0:00:15]} 105. Re1 {[%emt 0:01:24]} Rh7+ {[%emt 0:00:09]} 106. Kc8 {[%emt 0:00:03]} Kd5 {[%emt 0:00:54]} 107. Kd8 {[%emt 0:00:49]} Ra7 {[%emt 0:00:21]} 108. Ke8 {[%emt 0:00:23]} Bg6+ {[%emt 0:00:19]} 109. Kf8 {[%emt 0:00:21]} Kd6 {[%emt 0:00:01]} 110. Rc1 {[%emt 0:00:52]} Be4 {[%emt 0:00:50]} 111. Re1 {[%emt 0:00:40]} Bf5 {[%emt 0:00:49]} 112. Rc1 {[%emt 0:00:18]} Be6 {[%emt 0:00:53]} 113. Rf1 {[%emt 0:00:16] Prevents Rf7+.} Ke5 {[%emt 0:00:46]} (113... Ra8+ $17 114. Kg7 Rg8+ 115. Kh6 Rg2) 114. Ke8 {[%emt 0:00:16]} Bc4 {[%emt 0:01:15]} 115. Rc1 {[%emt 0:00:30]} Ke6 {[%emt 0:00:40][%cal Ra7a8]} 116. Kf8 {[%emt 0:00:11]} Kf6 {[%emt 0:00:29][%cal Ra7a8]} 117. Ke8 $1 {[%emt 0:00:41]} Be6 {[%emt 0:00:31] ( -> ...Ra8+)} 118. Rf1+ {[%emt 0:01:07]} Bf5 {[%emt 0:00:17][%cal Ra7a8]} 119. Rd1 $1 {[%emt 0:00:06]} Rc7 {[%emt 0:00:41]} 120. Rd2 {[%emt 0:00:12]} Bg4 {[%emt 0:00:25]} 121. Rd3 {[%emt 0:01:07]} Be6 {[%emt 0:00:37]} 122. Rd1 {[%emt 0:00:23]} Rh7 {[%emt 0:00:30][%cal Rh7h8]} 123. Kd8 $1 {[%emt 0:00:13]} Ke5 {[%emt 0:00:29]} 124. Ke8 {[%emt 0:00:03]} Bd5 {[%emt 0:00:31]} 125. Re1+ {[%emt 0:00:30]} Kd6 {[%emt 0:00:14]} (125... Kf4 $15) 126. Kf8 {[%emt 0:00:02]} (126. Kd8 $11) 126... Rf7+ {[%emt 0:00:14]} (126... Kc5 $15 127. Re5 Kd6) 127. Ke8 $1 $11 {[%emt 0:00:01]} Rf3 {[%emt 0:00:38] ( -> ...Bc6+)} 128. Rd1 $2 {[%emt 0:00:14][%mdl 8192]} (128. Kd8 $11) 128... Rf2 {[%emt 0:00:22]} 129. Rd4 {[%emt 0:00:40]} Re2+ {[%emt 0:00:38] Weighted Error Value: White=0.13 (very precise) /Black=0.13 (very precise)   Loses game:     	White=1     	---        Mistake:       	White=3     	Black=6      Inaccurate:     	White=6     	Black=3      OK:         	White=43    	Black=46     Best:        	White=8     	Black=4      Strong:       	White=6     	Black=2} 0-1

[Event "87th Tata Steel Challengers 2025"]
[Site "Wijk aan Zee"]
[Date "2025.02.01"]
[Round "12.6"]
[White "Nguyen, Thai Dai Van"]
[Black "Bulmaga, Irina"]
[Result "1-0"]
[Annotator "ChessBase"]
[ECO "E73"]
[WhiteElo "2668"]
[BlackElo "2386"]
[PlyCount "87"]
[EventDate "2025.01.13"]
[EventType "tourn"]
[EventCountry "NED"]
[SourceTitle "playchess.com"]
[Source "ChessBase"]
[SourceQuality "1"]
[TimeControl "40/6000+30:20/3000+30:900+30"]

1. d4 {[%emt 0:00:03]} Nf6 {[%emt 0:00:06]} 2. c4 {[%emt 0:00:06]} g6 {[%emt 0:00:07]} 3. Nc3 {[%emt 0:00:11]} Bg7 {[%emt 0:00:09]} 4. e4 {[%emt 0:00:04]} d6 {[%emt 0:00:07]} 5. Be2 {[%emt 0:00:03]} O-O {[%emt 0:00:13]} 6. Be3 {[%emt 0:00:02]} Nc6 {[%emt 0:00:24]} 7. d5 {[%emt 0:00:12]} Ne5 {[%emt 0:00:10]} 8. Rc1 {[%emt 0:01:10]} e6 {[%emt 0:04:09]} 9. f4 {[%emt 0:02:06]} Ned7 {[%emt 0:00:47]} 10. dxe6 {[%emt 0:00:11]} fxe6 {[%emt 0:00:08]} 11. Nh3 {[%emt 0:00:08]} b6 {[%emt 0:17:56]} 12. O-O {[%emt 0:01:00]} Bb7 {[%emt 0:00:10]} 13. Bf3 {[%emt 0:01:41]} Nc5 {[%emt 0:06:21]} 14. Bxc5 {[%emt 0:26:09]} bxc5 {[%emt 0:01:17]} 15. Ng5 {[%emt 0:00:18]} Qe8 {[%emt 0:24:30]} 16. e5 {[%emt 0:11:43]} Bxf3 {[%emt 0:00:54]} 17. Qxf3 {[%emt 0:07:02]} dxe5 {[%emt 0:08:31]} 18. Qh3 {[%emt 0:02:03]} exf4 {[%emt 0:06:09]} 19. Rce1 {[%emt 0:03:21]} Qd7 {[%emt 0:09:23]} 20. Rd1 {[%emt 0:01:49]} Qc6 {[%emt 0:08:34]} 21. Rxf4 {[%emt 0:27:45]} Nh5 {[%emt 0:09:09]} 22. Rxf8+ {[%emt 0:00:25]} Rxf8 {[%emt 0:01:48]} 23. Qxe6+ {[%emt 0:00:29]} Qxe6 {[%emt 0:00:03]} 24. Nxe6 {[%emt 0:00:07]} Bxc3 {[%emt 0:05:03]} 25. Nxf8 {[%emt 0:02:59]} Bd4+ {[%emt 0:00:09]} 26. Rxd4 {[%emt 0:00:02]} cxd4 {[%emt 0:00:06]} 27. Ne6 {[%emt 0:00:01]} d3 {[%emt 0:02:11]} 28. Kf2 {[%emt 0:01:19]} Kf7 {[%emt 0:03:22]} 29. Nxc7 {[%emt 0:09:38]} d2 {[%emt 0:00:03]} 30. Ke2 {[%emt 0:00:05]} Nf4+ {[%emt 0:00:05]} 31. Kxd2 {[%emt 0:00:03]} Nxg2 {[%emt 0:00:05]} 32. b4 {[%emt 0:00:21]} Nh4 {[%emt 0:01:37]} 33. Ke2 {[%emt 0:01:38]} Ke7 {[%emt 0:02:25]} 34. Nb5 {[%emt 0:00:25]} a6 {[%emt 0:00:29]} 35. Nc7 {[%emt 0:01:28]} a5 {[%emt 0:00:31]} 36. bxa5 {[%emt 0:00:12]} Kd7 {[%emt 0:00:30]} 37. Nb5 {[%emt 0:01:15]} Nf5 {[%emt 0:00:29]} 38. a6 {[%emt 0:00:10]} Kc8 {[%emt 0:00:47]} 39. c5 {[%emt 0:00:43]} Ne7 {[%emt 0:00:07]} 40. Kf3 {[%emt 0:00:23]} Nc6 {[%emt 0:00:36]} 41. a3 {[%emt 0:51:19]} h5 {[%emt 0:04:48]} 42. Kf4 {[%emt 0:00:00]} Nd8 {[%emt 0:00:26]} 43. Ke5 {[%emt 0:00:00]} g5 {[%emt 0:00:17]} 44. Kd5 {[%emt 0:00:00]} 1-0

[Event "87th Tata Steel Challengers 2025"]
[Site "Wijk aan Zee"]
[Date "2025.02.01"]
[Round "12.7"]
[White "Gurel, Ediz"]
[Black "Vaishali, Rameshbabu"]
[Result "1-0"]
[Annotator "TA"]
[ECO "C11"]
[WhiteElo "2624"]
[BlackElo "2476"]
[PlyCount "153"]
[EventDate "2025.01.13"]
[EventType "tourn"]
[EventCountry "NED"]
[SourceTitle "playchess.com"]
[Source "ChessBase"]
[SourceQuality "1"]
[TimeControl "40/6000+30:20/3000+30:900+30"]

{[%evp 13,153,0,19,19,32,21,20,28,26,10,8,3,6,7,0,-28,0,0,0,-29,-3,-12,-14,-14,0,-14,54,60,52,52,69,64,54,52,82,82,91,85,121,124,219,195,283,233,300,299,304,287,332,323,329,132,91,68,75,73,70,77,71,7,1,0,0,3,10,9,69,76,173,174,160,161,139,88,192,195,191,191,198,196,175,128,128,128,128,53,180,164,164,164,164,164,162,162,167,157,162,175,175,175,2181,2249,2113,1897,29975,6195,29977,29978,29978,29979,29979,29980,29980,29981,29981,29982,29982,29983,29983,29984,29984,29984,29984,29984,29983,29982,29984,29984,29984,29985,29985,29984,29985,29986,29989,29990,29990,29991,29991,29992,29995,29996]} 1. e4 {[%emt 0:00:03]} e6 {[%emt 0:00:16]} 2. d4 {[%emt 0:00:12]} d5 {[%emt 0:00:05]} 3. Nc3 {[%emt 0:00:21]} Nf6 {[%emt 0:00:15]} 4. e5 {[%emt 0:00:15]} Nfd7 {[%emt 0:00:05]} 5. f4 {[%emt 0:00:07]} c5 {[%emt 0:00:06]} 6. Nf3 {[%emt 0:00:13]} Nc6 {[%emt 0:00:06]} 7. Be3 {[%emt 0:00:15]} a6 {[%emt 0:00:17]} 8. Ne2 {[%emt 0:00:33] C11: French: Classical System: 4 e5 and 4 Bg5 dxe4.} Qb6 {[%emt 0:00:29] The main line 8...Qb6 scores better than 8...b5.} 9. Qc1 {[%emt 0:00:11]} Be7 {[%emt 0:00:14]} 10. c3 {[%emt 0:00:12] The position is equal.} f6 {[%emt 0:00:32]} 11. h4 {[%emt 0:00:56] 11.exf6 is not played anymore.} O-O {[%emt 0:00:43]} 12. h5 {[%emt 0:00:25]} h6 {[%emt 0:01:50]} 13. Rh3 {[%emt 0:03:15]} Rf7 {[%emt 0:01:12]} 14. a3 $1 $146 {[%emt 0:12:32][%mdl 8] A relevant novelty.} (14. Kf2 fxe5 15. fxe5 cxd4 16. cxd4 Bg5 17. Kg1 Bxe3+ 18. Qxe3 Qxb2 19. Rc1 Ne7 20. Nh4 {½-½ Van Foreest,J (2699)-Bacrot,E (2660) ESP-chT CECLUB Honor 2023 (7.2)}) 14... cxd4 {[%emt 0:27:31]} 15. cxd4 {[%emt 0:01:09]} Na5 {[%emt 0:02:49] aiming for ...Nb3.} 16. Qc2 {[%emt 0:16:42]} Nc4 {[%emt 0:28:44]} 17. Bc1 {[%emt 0:00:05]} Qa5+ {[%emt 0:00:26]} 18. Kd1 {[%emt 0:28:13][%cal Be1d1,Bd1c2,Bc2b2][%mdl 32]} fxe5 {[%emt 0:32:44]} 19. fxe5 {[%emt 0:07:30]} Ndb6 {[%emt 0:04:48]} (19... Qb6 $11) 20. b3 $1 $14 {[%emt 0:01:08]} Bd7 $1 {[%emt 0:00:41][%cal Oa8c8]} 21. Qc3 {[%emt 0:00:56]} (21. bxc4 $2 Ba4 22. c5 Bxc2+ $19) 21... Qxc3 {[%emt 0:02:37]} 22. Nxc3 {[%emt 0:00:02]} Na5 {[%emt 0:00:01]} 23. Kc2 {[%emt 0:00:30]} Rc8 {[%emt 0:00:56][%cal Oe7g5]} 24. Kb2 {[%emt 0:01:40]} Na8 {[%emt 0:02:31]} 25. Bd3 {[%emt 0:02:07]} b5 {[%emt 0:00:22]} 26. Ne2 {[%emt 0:01:18]} Be8 {[%emt 0:02:21]} (26... b4 $16) 27. Bd2 {[%emt 0:01:03]} Nc6 {[%emt 0:00:13]} (27... b4) 28. Rg3 $18 {[%emt 0:00:35]} Kh8 {[%emt 0:00:44]} 29. Nf4 {[%emt 0:00:27]} Rxf4 {[%emt 0:00:38]} 30. Bxf4 {[%emt 0:00:07]} Nb6 {[%emt 0:00:37]} 31. Rc1 {[%emt 0:01:38]} Rb8 {[%emt 0:00:32]} 32. Rh3 {[%emt 0:00:41]} (32. Ka2 $18 {is more deadly.}) 32... Nc4+ $16 {[%emt 0:00:23]} 33. bxc4 {[%emt 0:05:41]} bxc4+ {[%emt 0:00:03]} 34. Ka2 {[%emt 0:00:05]} cxd3 {[%emt 0:00:03]} 35. Bd2 {[%emt 0:00:34] Against Na5} Bd8 {[%emt 0:01:29]} 36. Bc3 {[%emt 0:14:03]} (36. Rb1 $16) 36... Na5 $11 {[%emt 0:00:23]} 37. Nd2 $36 {[%emt 0:00:56][%cal Oc1f1][%mdl 2048] White is pushing.} Bb5 {[%emt 0:00:38]} 38. a4 {[%emt 0:04:19]} Bxa4 {[%emt 0:00:18]} 39. Rxd3 {[%emt 0:00:24]} Bb5 {[%emt 0:00:42]} (39... Nc6 $1 $11) 40. Rf3 $14 {[%emt 0:00:05]} Bb6 {[%emt 0:00:32]} (40... Nc6 $16 {might work better.}) 41. Bxa5 $1 $18 {[%emt 0:52:26]} Bxa5 {[%emt 0:01:29]} 42. Nb3 {[%emt 0:00:00]} Bb4 {[%emt 0:09:50]} 43. Nc5 {[%emt 0:00:00]} (43. Rc7 $142) 43... Re8 {[%emt 0:11:27]} (43... Bc4+ $16 44. Ka1 Re8) 44. Kb3 $1 {[%emt 0:00:00]} a5 {[%emt 0:01:21]} 45. Rc2 {[%emt 0:00:00] Against Be2} Kg8 {[%emt 0:03:48]} 46. Nd3 {[%emt 0:00:00]} Bc4+ {[%emt 0:12:37]} 47. Rxc4 {[%emt 0:00:00]} (47. Ka4 $18) 47... dxc4+ $16 {[%emt 0:00:06]} 48. Kxc4 $18 {[%emt 0:00:00][%mdl 4096] Endgame KRB-KRN} Rb8 {[%emt 0:08:16]} 49. Rf2 {[%emt 0:00:00]} ({Better is} 49. Nxb4 $1 $16 Rxb4+ 50. Kc5) 49... Rc8+ {[%emt 0:01:37] This costs Black the game.} ({Black should play} 49... Be7 $14) 50. Nc5 {[%emt 0:00:00]} Re8 {[%emt 0:00:16]} 51. Rf3 {[%emt 0:00:00]} Rc8 {[%emt 0:01:14]} 52. Kb5 {[%emt 0:00:00]} Rb8+ {[%emt 0:01:56] [#]} 53. Kc6 $1 {[%emt 0:00:00] Kd7 is the strong threat.} Rc8+ {[%emt 0:01:03]} 54. Kb6 {[%emt 0:00:00]} Re8 {[%emt 0:00:58]} 55. Kb7 {[%emt 0:00:00]} Re7+ {[%emt 0:01:21]} 56. Kc6 {[%emt 0:00:00]} Rf7 $2 {[%emt 0:00:34]} (56... Ra7 57. Kb6 (57. Nxe6 a4 $16) 57... Re7) 57. Rxf7 {[%emt 0:00:00]} (57. Nxe6 a4 58. Nc5 (58. d5 a3 $11) 58... a3 $11) 57... Kxf7 {[%emt 0:00:02] [#] KB-KN} 58. Kd7 $1 {[%emt 0:00:00]} g5 {[%emt 0:01:05]} 59. Nxe6 {[%emt 0:02:06] White wants to mate with Nc5.} a4 {[%emt 0:00:19]} 60. Nc5 {[%emt 0:00:04] White mates.} Bxc5 {[%emt 0:00:39]} 61. dxc5 {[%emt 0:15:09] KP-KP. White is a pawn up.} a3 {[%emt 0:15:02]} 62. e6+ {[%emt 0:00:04]} Kg7 {[%emt 0:00:03]} 63. e7 {[%emt 0:00:03]} a2 {[%emt 0:00:04]} 64. e8=Q {[%emt 0:00:05]} (64. e8=B $2 a1=Q (64... a1=B $2 {too greedy.} 65. c6 $18) 65. Bg6 Kf6 $19) 64... a1=Q {[%emt 0:00:03] KQ-KQ. White is a pawn up.} 65. Qg6+ {[%emt 0:00:05]} Kf8 {[%emt 0:00:06]} 66. Qxh6+ {[%emt 0:00:05]} Kf7 {[%emt 0:00:05]} 67. Qg6+ {[%emt 0:00:04]} Kf8 {[%emt 0:00:04]} 68. Qf5+ {[%emt 0:00:04]} Kg8 {[%emt 0:00:04]} 69. Qxg5+ {[%emt 0:00:05]} Kh8 {[%emt 0:00:03]} 70. c6 {[%emt 0:01:21][%cal Bc5c6,Bc6c7][%mdl 32]} Qd4+ {[%emt 0:00:07]} 71. Kc8 {[%emt 0:00:15]} Qc4 {[%emt 0:00:39]} 72. Qe5+ {[%emt 0:01:53]} Kh7 {[%emt 0:00:12]} 73. c7 {[%emt 0:00:26]} Qa6+ {[%emt 0:01:18]} 74. Kd8 {[%emt 0:00:24]} Qb6 {[%emt 0:00:34]} 75. Kd7 {[%emt 0:00:38]} Qa7 {[%emt 0:00:14]} 76. Qe4+ {[%emt 0:00:21]} Kh8 {[%emt 0:00:18]} 77. h6 {[%emt 0:00:59] Weighted Error Value: White=0.13 (very precise) /Black=0.49  Missed win:     	White=1     	---        Mistake:       	White=4     	Black=8      Inaccurate:     	White=2     	Black=2      OK:         	White=23    	Black=20     Best:        	White=4     	Black=4      Strong:       	White=3     	Black=1} 1-0